bitfinex/quotes_SOLUSD_20260109
["timestamp","ask_amount","ask_price","bid_price","bid_amount"]
[1767929245573,3.59295485,139.21,139.16,4.1656641]
[1767929245868,7.18316582,139.22,139.17,0.70276077]
[1767929246048,3.46290333,139.21,139.17,0.70276077]
[1767929246248,10.64606915,139.22,139.17,0.70276077]
[1767929246651,10.77052763,139.22,139.17,0.70276077]
[1767929247050,7.18316582,139.22,139.19,0.70276077]
[1767929247554,10.64606915,139.22,139.19,0.70276077]
[1767929249869,28.72771768,139.22,139.17,3.46290333]
[1767929250861,28.72771768,139.22,139.14,7.18700589]
[1767929251067,28.72771768,139.22,139.17,3.46290333]
[1767929251666,28.72771768,139.22,139.18,0.70276077]
[1767929251862,28.72771768,139.22,139.17,3.46290333]
[1767929251863,13.12,139.23,139.2,0.70276077]
[1767929252269,13.12,139.23,139.21,0.70276077]
[1767929252771,7.18194381,139.24,139.22,0.70536538]
[1767929253263,7.87084106,139.25,139.22,0.70536538]
[1767929253676,7.18142823,139.25,139.22,0.70536538]
[1767929253883,25.13301952,139.26,139.23,0.70536538]
[1767929254189,25.78870073,139.26,139.23,0.70536538]
[1767929254380,0.65568121,139.25,139.22,3.46290333]
[1767929255573,0.65568121,139.25,139.21,0.70536538]
[1767929255769,0.65568121,139.25,139.22,3.46290333]
[1767929256183,0.65568121,139.25,139.21,7.88867167]
[1767929256369,0.65568121,139.25,139.22,3.46290333]
[1767929257269,0.65568121,139.25,139.23,3.46290333]
[1767929259392,0.65568121,139.24,139.21,3.46290333]
[1767929259689,7.18144495,139.25,139.22,0.70536538]
[1767929261284,0.65568121,139.21,139.18,0.70536538]
[1767929261472,0.65568121,139.2,139.17,0.70536538]
[1767929261677,0.62568121,139.2,139.17,0.70536538]
[1767929262089,3.46290333,139.21,139.17,0.70536538]
[1767929262286,20.30287602,139.22,139.18,0.70536538]
[1767929262586,13.12,139.22,139.2,0.70536538]
[1767929265798,20.95717484,139.25,139.2,3.46290333]
[1767929266015,0.14216157,139.27,139.2,3.46290333]
[1767929266016,0.65568121,139.27,139.23,3.46290333]
[1767929266295,0.65568121,139.3,139.26,3.46290333]
[1767929266513,0.65568121,139.3,139.25,0.70536538]
[1767929266689,0.65568121,139.3,139.26,3.46290333]
[1767929267598,7.83461136,139.3,139.26,3.46290333]
[1767929267776,7.83461136,139.3,139.26,4.16826871]
[1767929268182,0.65568121,139.3,139.26,0.70536538]
[1767929268412,0.65568121,139.3,139.26,4.16826871]
[1767929269484,20.9540285,139.31,139.27,0.70536538]
[1767929269677,20.9540285,139.31,139.27,4.16826871]
[1767929270502,20.9540285,139.31,139.28,3.46290333]
[1767929270675,20.29834729,139.31,139.28,4.16826871]
[1767929271200,20.29834729,139.31,139.28,0.70536538]
[1767929271400,20.29834729,139.31,139.24,4.16826871]
[1767929271401,0.65568121,139.28,139.24,4.16826871]
[1767929271905,0.65568121,139.28,139.25,0.70536538]
[1767929272374,7.83553233,139.28,139.23,11.35056851]
[1767929272579,7.83553233,139.28,139.24,4.16826871]
[1767929273097,0.65568121,139.28,139.24,4.16826871]
[1767929273486,7.83499847,139.29,139.25,4.16826871]
[1767929273800,7.83499847,139.29,139.25,0.70536538]
[1767929273986,0.65568121,139.29,139.25,4.16826871]
[1767929274599,0.65568121,139.29,139.25,2.92444607]
[1767929278406,7.83507703,139.29,139.25,0.70536538]
[1767929280309,7.83507703,139.29,139.25,2.92444607]
[1767929280814,0.65568121,139.29,139.26,0.70536538]
[1767929281001,0.65568121,139.29,139.26,2.92444607]
[1767929281198,7.17839635,139.31,139.28,0.70536538]
[1767929281395,20.93407756,139.31,139.28,0.70536538]
[1767929281811,20.93407756,139.31,139.27,2.92444607]
[1767929282800,0.7062588,139.3,139.27,2.92444607]
[1767929284208,7.88511318,139.3,139.26,2.93524538]
[1767929284410,0.7062588,139.29,139.25,10.11651613]
[1767929286312,0.7062588,139.29,139.25,7.89743544]
[1767929286917,0.7062588,139.29,139.26,0.66662595]
[1767929287299,7.85037943,139.3,139.26,0.66662595]
[1767929287611,0.67152505,139.3,139.26,7.84742612]
[1767929287818,0.67152505,139.3,139.26,10.06650681]
[1767929288113,0.67152505,139.3,139.26,0.66662595]
[1767929289522,7.85027958,139.3,139.26,0.66662595]
[1767929291612,0.67152505,139.29,139.26,0.66662595]
[1767929291806,0.67152505,139.29,139.25,9.40035676]
[1767929294812,0.67152505,139.29,139.25,7.18127607]
[1767929295008,0.67152505,139.29,139.24,2.21908069]
[1767929295722,0.67152505,139.29,139.25,2.21908069]
[1767929296718,9.49683699,139.3,139.26,0.66662595]
[1767929298302,0.56679979,139.29,139.26,0.66662595]
[1767929299117,9.39783699,139.3,139.26,0.66662595]
[1767929299314,9.49683699,139.3,139.26,0.66662595]
[1767929302827,0.56679979,139.29,139.26,0.66662595]
[1767929303027,0.56679979,139.29,139.24,7.18141091]
[1767929303325,0.56679979,139.29,139.25,0.66662595]
[1767929305920,13.67152505,139.3,139.26,0.66662595]
[1767929308130,13.1,139.3,139.25,9.40033814]
[1767929308325,0.099,139.29,139.25,9.40033814]
[1767929308729,9.39692047,139.32,139.27,0.66662595]
[1767929308918,23.20529999,139.33,139.28,0.66662595]
[1767929309306,23.06313842,139.33,139.28,0.66662595]
[1767929310111,15.88588048,139.33,139.29,0.66662595]
[1767929310731,2.21908069,139.3,139.27,0.66662595]
[1767929311033,2.3273436,139.3,139.27,0.66662595]
[1767929312238,0.10826291,139.3,139.27,0.66662595]
[1767929312409,2.79060574,139.32,139.27,0.66662595]
[1767929312732,4.84330313,139.31,139.27,0.66662595]
[1767929313537,2.79060574,139.32,139.27,0.66662595]
[1767929313831,2.79060574,139.32,139.27,7.84682746]
[1767929313832,9.9684055,139.32,139.27,7.84682746]
[1767929314032,9.9684055,139.32,139.28,0.70728197]
[1767929316835,2.21908069,139.31,139.28,0.70728197]
[1767929317930,2.31808069,139.31,139.28,0.70728197]
[1767929318131,0.099,139.31,139.28,0.70728197]
[1767929318443,2.21908069,139.31,139.28,0.70728197]
[1767929319147,9.9684055,139.32,139.28,0.70728197]
[1767929319444,7.17779976,139.32,139.28,0.70728197]
[1767929319742,9.39688045,139.32,139.28,0.70728197]
[1767929320350,2.21908069,139.31,139.28,0.70728197]
[1767929321352,7.17779976,139.32,139.28,0.70728197]
[1767929321353,2.21908069,139.32,139.28,0.70728197]
[1767929321644,7.06018191,139.32,139.28,0.70728197]
[1767929322321,2.21908069,139.32,139.28,0.70728197]
[1767929322517,7.06001587,139.32,139.28,0.70728197]
[1767929323147,14.23777766,139.32,139.28,0.70728197]
[1767929323442,2.32275869,139.31,139.27,7.88753648]
[1767929323628,2.21908069,139.31,139.28,0.70728197]
[1767929325734,2.79060574,139.32,139.28,0.70728197]
[1767929328747,0.57152505,139.32,139.28,0.70728197]
[1767929329047,2.79060574,139.32,139.28,0.70728197]
[1767929329353,0.099,139.31,139.27,7.18025451]
[1767929330746,0.099,139.31,139.27,7.88753648]
[1767929332142,0.099,139.31,139.27,7.18025451]
[1767929334452,0.099,139.31,139.27,9.3993352]
[1767929334636,3.56530657,139.32,139.28,0.70728197]
[1767929337258,3.46630657,139.32,139.28,0.70728197]
[1767929339035,10.74310711,139.32,139.28,0.70728197]
[1767929340455,3.56530657,139.32,139.28,0.70728197]
[1767929340663,3.56530657,139.32,139.29,0.70728197]
[1767929342965,10.74311252,139.32,139.29,0.70728197]
[1767929343570,3.56530657,139.32,139.29,0.70728197]
[1767929344563,0.56679979,139.31,139.28,0.69852644]
[1767929345269,11.21561077,139.32,139.28,0.69852644]
[1767929345944,4.03783162,139.32,139.28,0.69852644]
[1767929347770,0.099,139.31,139.28,0.69852644]
[1767929349573,0.099,139.31,139.28,7.87825902]
[1767929350867,0.099,139.32,139.29,0.69852644]
[1767929351864,0.099,139.32,139.28,0.71759369]
[1767929353069,24.31522683,139.33,139.28,0.71759369]
[1767929354878,20.84892026,139.33,139.28,0.71759369]
[1767929355081,24.31522683,139.33,139.28,0.71759369]
[1767929355478,0.099,139.32,139.28,0.71759369]
[1767929357378,24.31522683,139.33,139.28,0.71759369]
[1767929359586,103.67152505,139.36,139.3,0.71759369]
[1767929359762,4.84308414,139.35,139.31,0.71759369]
[1767929359961,8.30939071,139.35,139.31,0.71759369]
[1767929360163,3.46630657,139.35,139.31,0.71759369]
[1767929360885,10.64267181,139.35,139.31,0.71759369]
[1767929364787,3.46630657,139.35,139.32,0.71759369]
[1767929365282,16.56630657,139.36,139.32,0.71759369]
[1767929365483,4.83880502,139.35,139.32,0.71759369]
[1767929366781,16.66530657,139.36,139.32,0.71759369]
[1767929367490,0.56679979,139.35,139.31,10.64448012]
[1767929368174,0.56679979,139.35,139.32,7.17758774]
[1767929372990,13.67152505,139.36,139.33,7.88730601]
[1767929373185,0.57152505,139.38,139.34,0.71015279]
[1767929373381,8.87208642,139.38,139.34,0.71015279]
[1767929373577,4.03783162,139.38,139.34,0.71015279]
[1767929374297,0.103678,139.35,139.32,7.17760639]
[1767929374796,0.103678,139.35,139.32,7.88775918]
[1767929376374,3.46630657,139.37,139.32,7.88775918]
[1767929376597,0.57152505,139.36,139.32,11.35406575]
[1767929376981,3.46630657,139.37,139.33,0.71015279]
[1767929377504,7.7461828,139.38,139.34,0.71015279]
[1767929377679,3.56530657,139.37,139.34,0.71015279]
[1767929378003,3.46630657,139.37,139.34,0.71015279]
[1767929379102,7.7461828,139.38,139.34,0.71015279]
[1767929379404,11.21248937,139.38,139.34,0.71015279]
[1767929382897,7.7461828,139.38,139.34,0.71015279]
[1767929383106,11.21248937,139.38,139.34,0.71015279]
[1767929383483,3.46630657,139.38,139.35,0.71015279]
[1767929383696,23.84059026,139.39,139.35,0.71015279]
[1767929385509,0.1,139.39,139.36,0.71015279]
[1767929385684,4.92967046,139.39,139.36,0.71015279]
[1767929386082,0.1,139.39,139.36,0.71015279]
[1767929386286,4.92967254,139.39,139.36,0.71015279]
[1767929386594,0.1,139.39,139.36,0.71015279]
[1767929390193,3.56630657,139.39,139.36,0.71015279]
[1767929391305,0.1,139.39,139.36,0.71015279]
[1767929393105,0.1,139.39,139.37,0.71015279]
[1767929398224,0.1,139.39,139.38,0.71015279]
[1767929398524,0.1,139.39,139.38,0.65015284]
[1767929399811,2.21578532,139.41,139.37,7.17506419]
[1767929400316,0.1,139.43,139.4,0.71015279]
[1767929400622,0.1,139.43,139.39,2.21578532]
[1767929401225,0.1,139.43,139.4,2.21578532]
[1767929401425,0.1,139.43,139.4,2.15578532]
[1767929402626,0.1,139.43,139.41,0.67066371]
[1767929402804,0.1,139.43,139.41,0.61066371]
[1767929403006,0.1,139.43,139.41,2.21578532]
[1767929403307,0.1,139.43,139.38,17.93557286]
[1767929403518,0.1,139.43,139.4,2.21578532]
[1767929404826,0.1,139.43,139.41,0.67066371]
[1767929405898,0.78768344,139.43,139.41,2.21578532]
[1767929406117,0.1,139.43,139.41,2.88644903]
[1767929406627,1e-08,139.43,139.42,2.88644903]
[1767929407122,1e-08,139.44,139.43,2.21578532]
[1767929407314,0.68768345,139.44,139.41,7.17290023]
[1767929407504,1e-08,139.44,139.41,9.38868555]
[1767929409030,1e-08,139.44,139.42,0.67066371]
[1767929409440,1e-08,139.44,139.42,2.88644903]
[1767929409619,1e-08,139.44,139.43,2.21578532]
[1767929410122,1e-08,139.44,139.43,2.88644903]
[1767929410433,1e-08,139.45,139.44,0.67066371]
[1767929410830,1e-08,139.45,139.43,7.7996272]
[1767929412618,1e-08,139.45,139.43,10.01541252]
[1767929413812,1e-08,139.46,139.45,2.84344382]
[1767929414012,1e-08,139.46,139.45,2.78344387]
[1767929414233,1e-08,139.46,139.45,0.56765855]
[1767929414434,1e-08,139.46,139.43,7.1719687]
[1767929416042,1e-08,139.46,139.43,9.85541257]
[1767929416337,1e-08,139.46,139.45,0.46765855]
[1767929416530,1e-08,139.46,139.45,0.40765855]
[1767929417814,1e-08,139.46,139.44,9.386835]
[1767929418524,1e-08,139.46,139.45,2.62344387]
[1767929418836,1e-08,139.46,139.45,0.40765855]
[1767929419214,0.70047516,139.46,139.43,7.57954066]
[1767929419623,1e-08,139.46,139.43,7.57954066]
[1767929420036,1e-08,139.46,139.43,7.17188211]
[1767929420424,1e-08,139.46,139.44,0.40765855]
[1767929424530,1e-08,139.46,139.43,9.79532598]
[1767929425857,1e-08,139.46,139.43,9.38766743]
[1767929426143,1e-08,139.46,139.37,15.31578532]
[1767929426144,0.10396461,139.43,139.37,15.31578532]
[1767929426347,0.59054543,139.42,139.37,15.31578532]
[1767929426741,0.59054543,139.42,139.37,16.03221302]
[1767929427340,0.59054543,139.42,139.38,25.11018328]
[1767929428150,0.59054543,139.42,139.38,25.82661098]
[1767929428349,0.59054543,139.42,139.38,28.0423963]
[1767929430651,2.21578532,139.44,139.39,0.7164277]
[1767929430850,2.31478532,139.44,139.39,0.7164277]
[1767929431957,2.21578532,139.43,139.39,0.7164277]
[1767929432153,0.59054543,139.41,139.37,7.17475264]
[1767929432464,7.17156597,139.44,139.36,7.17566016]
[1767929432465,0.58572828,139.39,139.36,7.17566016]
[1767929432947,2.31478532,139.4,139.36,7.17566016]
[1767929433348,0.47807067,139.37,139.35,0.7164277]
[1767929433652,2.21578532,139.38,139.35,0.7164277]
[1767929433953,2.21578532,139.38,139.35,7.8924805]
[1767929434141,7.65898664,139.41,139.36,0.66196372]
[1767929434333,2.21578532,139.39,139.36,0.66196372]
[1767929434530,2.21578532,139.4,139.37,0.66196372]
[1767929436340,2.21578532,139.39,139.36,0.66196372]
[1767929437648,2.21578532,139.4,139.36,0.66196372]
[1767929439858,2.21578532,139.39,139.36,0.66196372]
[1767929448070,2.69385599,139.38,139.35,7.83802193]
[1767929452480,2.69385599,139.38,139.34,7.83865383]
[1767929453688,7.17370169,139.4,139.35,7.83791851]
[1767929453689,2.7015136,139.39,139.35,7.83791851]
[1767929453992,2.21578532,139.39,139.36,0.66196372]
[1767929454368,9.87521529,139.4,139.36,0.66196372]
[1767929454686,0.099,139.39,139.36,0.66196372]
[1767929455072,0.47807067,139.36,139.32,0.66196372]
[1767929455270,0.48186099,139.37,139.33,0.66196372]
[1767929455471,2.7015136,139.38,139.33,0.66196372]
[1767929455682,0.099,139.37,139.33,0.66196372]
[1767929456063,2.31478532,139.37,139.33,0.66196372]
[1767929456370,2.31478532,139.37,139.33,7.83893028]
[1767929456571,3.56289747,139.37,139.33,7.83893028]
[1767929458775,0.10658103,139.33,139.28,7.84174354]
[1767929459079,0.10658103,139.33,139.28,0.66196372]
[1767929459386,3.5704785,139.33,139.28,0.66196372]
[1767929459888,0.10658103,139.33,139.29,7.17919379]
[1767929460055,3.93825324,139.32,139.29,7.17919379]
[1767929460259,3.46389747,139.34,139.3,0.66196372]
[1767929460459,3.46389747,139.35,139.31,0.66196372]
[1767929460659,3.56289747,139.35,139.31,0.66196372]
[1767929461061,0.099,139.35,139.31,0.66196372]
[1767929461269,3.56289747,139.35,139.31,0.66196372]
[1767929461482,3.56289747,139.35,139.31,7.83982779]
[1767929463382,3.46389747,139.39,139.34,0.69658304]
[1767929463589,103.7062816,139.4,139.34,0.69658304]
[1767929463803,3.46389747,139.39,139.34,0.69658304]
[1767929464586,3.46389747,139.39,139.35,0.69658304]
[1767929465091,3.46389747,139.38,139.35,0.69658304]
[1767929465585,7.87157032,139.39,139.35,0.69658304]
[1767929465586,4.16129968,139.39,139.35,0.69658304]
[1767929467888,0.69740221,139.39,139.35,0.69658304]
[1767929468192,4.16129968,139.39,139.35,0.69658304]
[1767929469690,4.16129968,139.39,139.35,7.87275206]
[1767929470475,4.16222009,139.41,139.36,0.69658304]
[1767929470678,24.43495351,139.42,139.37,0.69658304]
[1767929471571,0.6062816,139.41,139.37,7.87156728]
[1767929472498,4.07017907,139.41,139.37,7.87156728]
[1767929473693,0.6672429,139.4,139.37,7.87156728]
[1767929476195,0.6672429,139.41,139.37,7.87156728]
[1767929476394,13.1,139.42,139.38,0.67333135]
[1767929476591,103.1,139.43,139.38,0.67333135]
[1767929476592,0.63705052,139.43,139.39,0.67333135]
[1767929476775,7.17197413,139.44,139.37,0.67333135]
[1767929476776,4.10124689,139.41,139.37,0.67333135]
[1767929477176,4.10124689,139.41,139.37,7.84843508]
[1767929483407,3.46389747,139.4,139.37,7.84843508]
[1767929484498,4.10124689,139.41,139.37,7.84843508]
[1767929484695,4.10124689,139.41,139.38,7.8479592]
[1767929485506,4.13114037,139.43,139.39,0.67333135]
[1767929486718,0.63705052,139.42,139.38,10.63852532]
[1767929486895,0.66694098,139.43,139.38,7.84763166]
[1767929487095,0.66664507,139.41,139.38,7.17430031]
[1767929488710,0.66664507,139.41,139.38,7.1746305]
[1767929489010,4.13114037,139.44,139.39,0.67333135]
[1767929489396,4.13114037,139.44,139.39,4.13722882]
[1767929489603,4.13114037,139.44,139.4,0.67333135]
[1767929492319,4.13114037,139.45,139.41,0.67333135]
[1767929493315,4.10094799,139.44,139.41,0.67333135]
[1767929494114,0.63705052,139.44,139.41,0.67333135]
[1767929494303,4.10094799,139.44,139.41,0.67333135]
[1767929497598,0.63705052,139.44,139.41,0.67333135]
[1767929498217,4.10094799,139.44,139.4,0.65486666]
[1767929498925,11.27266534,139.44,139.4,0.65486666]
[1767929500923,7.80876787,139.44,139.4,0.65486666]
[1767929501120,11.27266534,139.44,139.4,0.65486666]
[1767929506527,4.13083845,139.43,139.4,0.65486666]
[1767929506730,0.63734942,139.42,139.39,0.65486666]
[1767929509231,4.10124689,139.42,139.39,0.65486666]
[1767929509422,11.27387696,139.42,139.39,0.65486666]
[1767929510229,4.10124689,139.42,139.39,0.65486666]
[1767929511943,0.63734942,139.42,139.39,0.65486666]
[1767929512240,0.63734942,139.42,139.38,10.6385233]
[1767929515120,0.63734942,139.42,139.39,0.65486666]
[1767929517439,13.1,139.43,139.39,0.65486666]
[1767929517440,17.20018699,139.43,139.39,0.65486666]
[1767929518445,13.1,139.43,139.39,0.65486666]
[1767929518642,0.63660357,139.41,139.38,7.82949249]
[1767929519154,0.63660357,139.41,139.37,7.82994646]
[1767929519338,0.63660357,139.41,139.37,10.04487148]
[1767929519725,0.63660357,139.41,139.38,0.65486666]
[1767929520225,2.88293661,139.42,139.38,0.65486666]
[1767929521546,15.98293661,139.43,139.39,0.65486666]
[1767929522049,13.76801159,139.43,139.4,0.65486666]
[1767929522348,13.1,139.43,139.4,0.65486666]
[1767929522736,0.65512342,139.45,139.41,0.65854651]
[1767929523342,0.65512342,139.45,139.42,0.65854651]
[1767929523931,13.10000001,139.46,139.43,0.65854651]
[1767929525947,13.10000001,139.46,139.44,0.65854651]
[1767929527852,13.10000001,139.46,139.43,7.17202961]
[1767929527853,13.10000001,139.46,139.43,7.87451596]
[1767929528353,1e-08,139.46,139.43,7.87451596]
[1767929528550,0.64910895,139.45,139.41,0.70248635]
[1767929528734,0.65500313,139.44,139.4,7.87572194]
[1767929529044,0.65500313,139.44,139.41,0.70248635]
[1767929529439,2.86992815,139.44,139.4,0.70248635]
[1767929531637,2.86992815,139.44,139.4,7.87594563]
[1767929532750,2.86992815,139.44,139.41,0.70248635]
[1767929533336,20.27106834,139.45,139.41,0.70248635]
[1767929533741,20.88831652,139.45,139.41,0.70248635]
[1767929535851,0.68654529,139.44,139.4,2.21492502]
[1767929536245,0.68654529,139.44,139.39,2.91741137]
[1767929538962,0.68654529,139.44,139.4,9.38852616]
[1767929540861,0.68654529,139.44,139.4,10.09101251]
[1767929541165,0.68654529,139.44,139.41,0.70248635]
[1767929542863,13.78724526,139.45,139.41,7.87546841]
[1767929543046,13.1,139.45,139.42,0.70248635]
[1767929545137,1e-08,139.46,139.43,0.70248635]
[1767929546556,0.6865453,139.46,139.43,0.70248635]
[1767929548066,2.90147032,139.46,139.43,0.70248635]
[1767929551369,1e-08,139.46,139.43,0.70248635]
[1767929551556,1e-08,139.46,139.44,0.70248635]
[1767929552072,0.61724819,139.46,139.43,7.17197404]
[1767929552262,0.61724819,139.46,139.43,7.87446039]
[1767929553360,1e-08,139.46,139.44,0.72240131]
[1767929553773,1e-08,139.46,139.44,2.93732633]
[1767929553964,1e-08,139.46,139.45,0.72240131]
[1767929554146,1e-08,139.46,139.45,0.66240133]
[1767929555357,1e-08,139.46,139.43,9.38689906]
[1767929555548,1e-08,139.46,139.43,7.17197404]
[1767929555748,1e-08,139.46,139.43,9.38689906]
[1767929556161,1e-08,139.46,139.44,2.93732633]
[1767929557575,1e-08,139.46,139.45,0.72240131]
[1767929558166,1e-08,139.46,139.44,10.10880711]
[1767929559052,1e-08,139.46,139.45,0.72240131]
[1767929559357,1e-08,139.46,139.45,2.93732633]
[1767929560251,1e-08,139.46,139.45,10.10835537]
[1767929560452,0.70234524,139.49,139.45,9.38595406]
[1767929560654,0.70234524,139.5,139.46,2.21492502]
[1767929560861,0.70234524,139.5,139.45,10.10835537]
[1767929561411,0.70234524,139.5,139.45,7.89343035]
[1767929561666,0.70234524,139.5,139.46,0.72240131]
[1767929562874,0.70234524,139.5,139.46,2.93732633]
[1767929564872,0.70234524,139.5,139.47,0.72240131]
[1767929565077,0.80234524,139.52,139.49,0.72240131]
[1767929565283,0.1,139.52,139.49,2.87732636]
[1767929565670,0.1,139.52,139.5,2.21492502]
[1767929566179,0.1,139.52,139.49,10.04605597]
[1767929566383,0.1,139.53,139.51,2.21492502]
[1767929566590,0.1,139.53,139.52,2.21492502]
[1767929567469,0.1,139.53,139.52,2.93732633]
[1767929567990,0.1,139.53,139.52,10.10475752]
[1767929568293,0.1,139.53,139.52,0.72240131]
[1767929570080,0.70234524,139.56,139.53,0.72240131]
[1767929570672,0.70234524,139.57,139.54,0.72240131]
[1767929570986,16.11727026,139.58,139.54,0.66240136]
[1767929571167,13.90234524,139.58,139.54,0.66240136]
[1767929572068,0.80234524,139.58,139.54,0.66240136]
[1767929572602,0.80234524,139.58,139.54,9.38125731]
[1767929572889,0.80234524,139.58,139.54,10.10365862]
[1767929573187,0.1,139.58,139.55,0.72240131]
[1767929574791,0.80234524,139.58,139.54,10.10365862]
[1767929575088,0.80234524,139.58,139.55,0.72240131]
[1767929575478,0.1,139.58,139.55,0.72240131]
[1767929575788,0.80234524,139.58,139.54,23.18370958]
[1767929575993,0.1,139.58,139.55,0.72240131]
[1767929576400,0.1,139.58,139.56,0.72240131]
[1767929580292,0.1,139.58,139.56,4.17459845]
[1767929581205,0.1,139.61,139.59,0.72240131]
[1767929581407,0.1,139.63,139.61,0.72240131]
[1767929581695,0.1,139.63,139.61,4.1145985]
[1767929581871,0.1,139.63,139.61,0.66240136]
[1767929583214,0.68715259,139.61,139.57,10.61696186]
[1767929583522,0.68715259,139.61,139.57,7.87525673]
[1767929583702,0.68715259,139.61,139.57,11.32745387]
[1767929587801,0.65716096,139.6,139.56,3.45219714]
[1767929588021,0.65716096,139.6,139.56,4.12240201]
[1767929590309,0.65716096,139.6,139.56,11.28771941]
[1767929595531,0.65716096,139.61,139.57,11.28715395]
[1767929596909,0.65716096,139.62,139.58,0.67020487]
[1767929597106,0.65716096,139.62,139.58,4.12240201]
[1767929598006,0.75716096,139.63,139.59,4.12240201]
[1767929598605,0.75716096,139.63,139.59,0.67020487]
[1767929604829,0.75716096,139.63,139.56,80.01263007]
[1767929604830,0.65716096,139.6,139.56,73.38760961]
[1767929605015,0.65716096,139.59,139.56,7.16533738]
[1767929605736,0.65716096,139.59,139.56,11.28773939]
[1767929610239,0.65716096,139.61,139.57,10.61699386]
[1767929610423,0.65716096,139.61,139.58,3.45219714]
[1767929612452,0.65716096,139.61,139.57,10.61699386]
[1767929614045,0.65716096,139.61,139.57,11.31791751]
[1767929617627,0.65716096,139.61,139.57,4.15312079]
[1767929618744,0.67475663,139.6,139.56,4.15312079]
[1767929619643,0.67475663,139.6,139.57,0.70092365]
[1767929619842,0.67475663,139.6,139.57,4.15312079]
[1767929622469,0.67475663,139.6,139.56,0.70092365]
[1767929622770,0.67475663,139.6,139.57,3.45219714]
[1767929623948,0.67475663,139.62,139.57,4.15312079]
[1767929624854,0.67475663,139.62,139.57,11.31775478]
[1767929625364,0.67475663,139.61,139.57,11.31775478]
[1767929626068,0.67475663,139.6,139.56,0.70092365]
[1767929626258,0.64475662,139.6,139.56,0.70092365]
[1767929626570,0.64475662,139.6,139.56,4.15312079]
[1767929627073,0.64475662,139.6,139.56,11.31842253]
[1767929632087,0.67475663,139.61,139.58,0.70092365]
[1767929632262,0.67475663,139.61,139.58,4.15312079]
[1767929632457,0.67475663,139.61,139.57,7.86563797]
[1767929632658,0.67475663,139.61,139.57,11.31783511]
[1767929634285,0.67475663,139.61,139.57,7.86563797]
[1767929634488,0.67475663,139.6,139.57,0.70092365]
[1767929634860,0.67475663,139.6,139.57,4.15312079]
[1767929635560,0.67475663,139.6,139.57,0.70092365]
[1767929639384,0.67475663,139.62,139.58,0.70092365]
[1767929639570,4.12695377,139.62,139.58,0.70092365]
[1767929639892,0.67475663,139.61,139.58,0.70092365]
[1767929640486,0.67475663,139.61,139.57,10.07448047]
[1767929640692,0.67475663,139.61,139.58,0.70092365]
[1767929642588,0.67475663,139.61,139.57,9.37355682]
[1767929642789,0.67475663,139.61,139.57,10.08839796]
[1767929646890,0.67475663,139.61,139.55,13.08]
[1767929647085,0.66541153,139.57,139.53,2.92387228]
[1767929647291,0.6354115,139.57,139.53,0.71484114]
[1767929647473,2.17903114,139.57,139.53,0.71484114]
[1767929647875,2.17903114,139.57,139.52,0.71484114]
[1767929648197,2.20903114,139.56,139.52,7.88222613]
[1767929649497,2.87444267,139.56,139.52,7.88222613]
[1767929650297,0.66541153,139.55,139.52,7.88222613]
[1767929650815,0.66541153,139.54,139.51,7.1677567]
[1767929650970,0.66541153,139.54,139.51,7.88259784]
[1767929651294,0.66541153,139.54,139.51,10.09162898]
[1767929655616,0.66541153,139.54,139.5,9.37733223]
[1767929657015,0.66541153,139.54,139.5,10.09217337]
[1767929657191,0.66541153,139.54,139.51,2.92387228]
[1767929657388,0.66541153,139.54,139.51,2.20903114]
[1767929658016,0.66541153,139.54,139.51,2.92673502]
[1767929660898,0.66541153,139.54,139.51,2.20903114]
[1767929661601,0.66541153,139.54,139.5,7.88600497]
[1767929661807,0.66541153,139.54,139.5,10.09503611]
[1767929664202,0.66541153,139.54,139.51,2.20903114]
[1767929666709,0.66541153,139.54,139.51,2.92673502]
[1767929667408,0.66541153,139.54,139.51,0.71770388]
[1767929669802,0.66541153,139.54,139.5,10.09503611]
[1767929676313,0.66541153,139.54,139.5,7.88600497]
[1767929676520,0.66541153,139.54,139.5,10.09503611]
[1767929678521,0.66541153,139.54,139.5,9.37733223]
[1767929679521,0.66541153,139.54,139.5,10.07534517]
[1767929680019,0.63541151,139.54,139.5,10.07534517]
[1767929680210,0.60541151,139.54,139.5,10.07534517]
[1767929682328,0.66336717,139.55,139.52,0.69801294]
[1767929682815,0.66336717,139.55,139.52,2.90704408]
[1767929682997,0.66336717,139.56,139.53,0.69801294]
[1767929684216,0.66336717,139.56,139.52,2.20903114]
[1767929684417,0.66336717,139.56,139.52,2.90704408]
[1767929685022,0.66336717,139.56,139.52,0.69801294]
[1767929687124,0.66336717,139.56,139.52,10.07438943]
[1767929687325,0.63336717,139.56,139.52,10.07438943]
[1767929687734,0.63336717,139.56,139.53,0.69801294]
[1767929691329,0.63336717,139.56,139.53,7.86476272]
[1767929692630,0.63336717,139.56,139.54,0.69801294]
[1767929692831,0.66336717,139.58,139.55,0.69801294]
[1767929693231,0.66336717,139.58,139.55,2.90704408]
[1767929694026,20.24344569,139.6,139.56,0.69801294]